[Event "*** SCC Grand Prix: Titled Tuesday Blitz"]
[Site "Chess.com"]
[Date "2020.06.23"]
[Round "5"]
[White "Sadykov_Ramil"]
[Black "Cubitas"]
[Result "1-0"]
[WhiteElo "2407"]
[BlackElo "2542"]
[TimeControl "180+1"]
[EndTime "10:58:22 PDT"]
[Termination "Sadykov_Ramil won on time"]

1. e4 {[%clk 0:03:00.9]} 1... c5 {[%clk 0:02:59.5]} 2. Nf3 {[%clk 0:03:00.4]}
2... Nc6 {[%clk 0:03:00.1]} 3. d4 {[%clk 0:03:00.5]} 3... cxd4 {[%clk 0:03:01]}
4. Nxd4 {[%clk 0:03:01]} 4... e5 {[%clk 0:03:01.7]} 5. Nb5 {[%clk 0:03:01.1]}
5... d6 {[%clk 0:03:02.4]} 6. N1c3 {[%clk 0:03:00.8]} 6... a6 {[%clk 0:03:03]}
7. Na3 {[%clk 0:03:00.6]} 7... b5 {[%clk 0:03:03.5]} 8. Nd5 {[%clk 0:03:00.6]}
8... Nge7 {[%clk 0:03:04]} 9. c4 {[%clk 0:02:55.7]} 9... Nd4 {[%clk 0:03:01.8]}
10. Nxe7 {[%clk 0:02:38.4]} 10... Bxe7 {[%clk 0:03:00.8]} 11. cxb5 {[%clk
0:02:38]} 11... O-O {[%clk 0:02:56.1]} 12. bxa6 {[%clk 0:02:30.2]} 12... Bxa6
{[%clk 0:02:48.9]} 13. Bxa6 {[%clk 0:02:28.8]} 13... Qa5+ {[%clk 0:02:48.8]} 14.
Bd2 {[%clk 0:02:22.9]} 14... Qxa6 {[%clk 0:02:48.4]} 15. Bc3 {[%clk 0:02:22.5]}
15... f5 {[%clk 0:01:36.9]} 16. Nc2 {[%clk 0:01:21.7]} 16... Nb5 {[%clk
0:00:53.3]} 17. Qd5+ {[%clk 0:01:02.7]} 17... Kh8 {[%clk 0:00:52.4]} 18. O-O
{[%clk 0:00:47.4]} 18... Nc7 {[%clk 0:00:46.8]} 19. Qd2 {[%clk 0:00:33.8]} 19...
fxe4 {[%clk 0:00:45.9]} 20. Nb4 {[%clk 0:00:29.3]} 20... Qc4 {[%clk 0:00:43.7]}
21. a3 {[%clk 0:00:23.6]} 21... Rf6 {[%clk 0:00:35.6]} 22. Rac1 {[%clk 0:00:22]}
22... Rg6 {[%clk 0:00:18.2]} 23. Bxe5 {[%clk 0:00:19.1]} 23... Qe6 {[%clk
0:00:18.3]} 24. Bg3 {[%clk 0:00:18.3]} 24... Bg5 {[%clk 0:00:17.9]} 25. Qc2
{[%clk 0:00:15.2]} 25... Bxc1 {[%clk 0:00:17.1]} 26. Rxc1 {[%clk 0:00:16.1]}
26... Ne8 {[%clk 0:00:17]} 27. Qc6 {[%clk 0:00:16.2]} 27... Rd8 {[%clk
0:00:15.6]} 28. Qd5 {[%clk 0:00:16.3]} 28... h6 {[%clk 0:00:15.3]} 29. Qxe6
{[%clk 0:00:15.6]} 29... Rxe6 {[%clk 0:00:16.2]} 30. Kf1 {[%clk 0:00:15.7]}
30... d5 {[%clk 0:00:16.6]} 31. Rd1 {[%clk 0:00:15.7]} 31... d4 {[%clk
0:00:16.9]} 32. Ke2 {[%clk 0:00:16]} 32... Nf6 {[%clk 0:00:16.5]} 33. Rc1 {[%clk
0:00:15.7]} 33... d3+ {[%clk 0:00:16.9]} 34. Kd2 {[%clk 0:00:15.6]} 34... Nh5
{[%clk 0:00:17.2]} 35. Bc7 {[%clk 0:00:14.7]} 35... Rf8 {[%clk 0:00:16.9]} 36.
Bb6 {[%clk 0:00:13.5]} 36... Nf4 {[%clk 0:00:17]} 37. g3 {[%clk 0:00:12.4]}
37... Nh3 {[%clk 0:00:17.4]} 38. Rf1 {[%clk 0:00:11.8]} 38... Ref6 {[%clk
0:00:15.9]} 39. Be3 {[%clk 0:00:08.2]} 39... Nxf2 {[%clk 0:00:15.2]} 40. Nd5
{[%clk 0:00:08]} 40... Rf5 {[%clk 0:00:14.7]} 41. Nf4 {[%clk 0:00:08.2]} 41...
Ng4 {[%clk 0:00:13]} 42. Ng6+ {[%clk 0:00:08]} 42... Kg8 {[%clk 0:00:13.4]} 43.
Ne7+ {[%clk 0:00:07.5]} 43... Kh7 {[%clk 0:00:13.2]} 44. Nxf5 {[%clk 0:00:08]}
44... Rc8 {[%clk 0:00:13.7]} 45. Nd4 {[%clk 0:00:07.8]} 45... Ne5 {[%clk
0:00:12.7]} 46. Rf4 {[%clk 0:00:07.6]} 46... Nc4+ {[%clk 0:00:12.8]} 47. Ke1
{[%clk 0:00:06.1]} 47... Nxe3 {[%clk 0:00:13.4]} 48. Rxe4 {[%clk 0:00:06.6]}
48... Nc2+ {[%clk 0:00:13.5]} 49. Kd2 {[%clk 0:00:06.7]} 49... Nxd4 {[%clk
0:00:13.6]} 50. Rxd4 {[%clk 0:00:06.5]} 50... Rc2+ {[%clk 0:00:14.5]} 51. Kxd3
{[%clk 0:00:07]} 51... Rxb2 {[%clk 0:00:15.2]} 52. Kc4 {[%clk 0:00:05.4]} 52...
Rxh2 {[%clk 0:00:15.2]} 53. Kb5 {[%clk 0:00:05.6]} 53... Rg2 {[%clk 0:00:15.3]}
54. Rd3 {[%clk 0:00:05.3]} 54... h5 {[%clk 0:00:15.7]} 55. a4 {[%clk 0:00:05.5]}
55... g5 {[%clk 0:00:15.4]} 56. a5 {[%clk 0:00:05.9]} 56... Rb2+ {[%clk
0:00:15.6]} 57. Kc6 {[%clk 0:00:05.6]} 57... Kg6 {[%clk 0:00:16]} 58. a6 {[%clk
0:00:05.7]} 58... Ra2 {[%clk 0:00:15.4]} 59. Kb7 {[%clk 0:00:05.8]} 59... Kf5
{[%clk 0:00:16.3]} 60. a7 {[%clk 0:00:05.7]} 60... Ke4 {[%clk 0:00:15.6]} 61.
Rb3 {[%clk 0:00:05.3]} 61... Kf5 {[%clk 0:00:13.1]} 62. Rb4 {[%clk 0:00:05]}
62... h4 {[%clk 0:00:08.2]} 63. gxh4 {[%clk 0:00:04.8]} 63... gxh4 {[%clk
0:00:05.2]} 64. Rxh4 {[%clk 0:00:03]} 64... Rb2+ {[%clk 0:00:05.8]} 65. Ka8
{[%clk 0:00:03.1]} 65... Ke6 {[%clk 0:00:05.5]} 66. Rh8 {[%clk 0:00:03.6]} 66...
Kd7 {[%clk 0:00:05]} 67. Rb8 {[%clk 0:00:04.1]} 67... Ra2 {[%clk 0:00:05.4]} 68.
Kb7 {[%clk 0:00:02.9]} 68... Rb2+ {[%clk 0:00:04.9]} 69. Ka6 {[%clk 0:00:03.5]}
69... Ra2+ {[%clk 0:00:05.3]} 70. Kb6 {[%clk 0:00:04.2]} 70... Rb2+ {[%clk
0:00:04.6]} 71. Kc5 {[%clk 0:00:04.4]} 1-0

[Event "*** SCC Grand Prix: Titled Tuesday Blitz"]
[Site "Chess.com"]
[Date "2020.06.23"]
[Round "5"]
[White "KazakhFighter04"]
[Black "Moon_stone123"]
[Result "1-0"]
[WhiteElo "2751"]
[BlackElo "2460"]
[TimeControl "180+1"]
[EndTime "10:58:31 PDT"]
[Termination "KazakhFighter04 won by checkmate"]

1. d4 {[%clk 0:03:00.9]} 1... Nf6 {[%clk 0:02:57.8]} 2. c3 {[%clk 0:03:01.3]}
2... g6 {[%clk 0:02:56.8]} 3. Bg5 {[%clk 0:03:00.5]} 3... Bg7 {[%clk 0:02:56.7]}
4. Nd2 {[%clk 0:03:01]} 4... O-O {[%clk 0:02:55.1]} 5. e4 {[%clk 0:03:01.2]}
5... d6 {[%clk 0:02:55.7]} 6. Ngf3 {[%clk 0:03:01.3]} 6... c5 {[%clk 0:02:55.9]}
7. dxc5 {[%clk 0:03:01.2]} 7... dxc5 {[%clk 0:02:56.8]} 8. Bc4 {[%clk
0:03:01.5]} 8... Nc6 {[%clk 0:02:56.2]} 9. O-O {[%clk 0:03:01.2]} 9... h6 {[%clk
0:02:56.1]} 10. Bh4 {[%clk 0:03:00.3]} 10... g5 {[%clk 0:02:54.7]} 11. Bg3
{[%clk 0:02:59.9]} 11... Nh5 {[%clk 0:02:55.1]} 12. Qe2 {[%clk 0:02:32.4]} 12...
Nxg3 {[%clk 0:02:53]} 13. fxg3 {[%clk 0:02:29.5]} 13... a6 {[%clk 0:02:41.4]}
14. Kh1 {[%clk 0:02:18.7]} 14... b5 {[%clk 0:02:39.5]} 15. Bd5 {[%clk
0:02:13.4]} 15... Bb7 {[%clk 0:02:38.3]} 16. a4 {[%clk 0:02:11.1]} 16... e6
{[%clk 0:02:20.7]} 17. axb5 {[%clk 0:02:10.5]} 17... exd5 {[%clk 0:02:20.6]} 18.
bxc6 {[%clk 0:02:10.9]} 18... Bxc6 {[%clk 0:02:21.4]} 19. exd5 {[%clk
0:02:10.9]} 19... Qxd5 {[%clk 0:02:14.9]} 20. Rxa6 {[%clk 0:02:02.4]} 20... Rab8
{[%clk 0:02:08.2]} 21. c4 {[%clk 0:01:43.5]} 21... Qd7 {[%clk 0:01:48.3]} 22. b3
{[%clk 0:01:42.7]} 22... Rbe8 {[%clk 0:01:44.1]} 23. Qf2 {[%clk 0:01:41]} 23...
Bb7 {[%clk 0:01:42.1]} 24. Ra5 {[%clk 0:01:32.1]} 24... Ra8 {[%clk 0:01:20.6]}
25. Rxa8 {[%clk 0:01:19.2]} 25... Rxa8 {[%clk 0:01:15.2]} 26. h3 {[%clk
0:01:14.2]} 26... Ra2 {[%clk 0:01:14.9]} 27. Qe3 {[%clk 0:01:14.1]} 27... Bd4
{[%clk 0:00:59.7]} 28. Qd3 {[%clk 0:01:00.3]} 28... Qe6 {[%clk 0:00:47]} 29. Re1
{[%clk 0:00:57.2]} 29... Qc6 {[%clk 0:00:38.1]} 30. Ne4 {[%clk 0:00:45]} 30...
Bf2 {[%clk 0:00:26.4]} 31. Nxf2 {[%clk 0:00:23.5]} 31... Rxf2 {[%clk 0:00:27.3]}
32. Kg1 {[%clk 0:00:22]} 32... Ra2 {[%clk 0:00:25.1]} 33. Qe3 {[%clk 0:00:21.1]}
33... Qf6 {[%clk 0:00:19.4]} 34. Re2 {[%clk 0:00:17]} 34... Ra1+ {[%clk
0:00:17.5]} 35. Kh2 {[%clk 0:00:17.1]} 35... Bxf3 {[%clk 0:00:16.5]} 36. Qxf3
{[%clk 0:00:17.2]} 36... Qxf3 {[%clk 0:00:13.9]} 37. gxf3 {[%clk 0:00:18.1]}
37... Rb1 {[%clk 0:00:13.8]} 38. Re3 {[%clk 0:00:15.7]} 38... Rb2+ {[%clk
0:00:14]} 39. Kh1 {[%clk 0:00:15.7]} 39... Kg7 {[%clk 0:00:14.5]} 40. Kg1 {[%clk
0:00:13.4]} 40... Kf6 {[%clk 0:00:14.6]} 41. Rd3 {[%clk 0:00:14]} 41... Kg6
{[%clk 0:00:13.5]} 42. g4 {[%clk 0:00:13.8]} 42... Kf6 {[%clk 0:00:13.5]} 43.
Rd5 {[%clk 0:00:09.7]} 43... Rxb3 {[%clk 0:00:13]} 44. Kg2 {[%clk 0:00:09.6]}
44... Rb2+ {[%clk 0:00:08.5]} 45. Kg3 {[%clk 0:00:09.4]} 45... Rc2 {[%clk
0:00:07.6]} 46. Rxc5 {[%clk 0:00:09.4]} 46... Kg6 {[%clk 0:00:07.9]} 47. h4
{[%clk 0:00:09.9]} 47... f6 {[%clk 0:00:07]} 48. Rc7 {[%clk 0:00:08.8]} 48...
gxh4+ {[%clk 0:00:06.6]} 49. Kxh4 {[%clk 0:00:09]} 49... Rc3 {[%clk 0:00:07]}
50. Kg3 {[%clk 0:00:08.9]} 50... h5 {[%clk 0:00:06.1]} 51. gxh5+ {[%clk
0:00:08.4]} 51... Kxh5 {[%clk 0:00:07]} 52. Kf4 {[%clk 0:00:09.2]} 52... Kg6
{[%clk 0:00:07.2]} 53. c5 {[%clk 0:00:08.8]} 53... Rc1 {[%clk 0:00:07.4]} 54.
Ke4 {[%clk 0:00:08.1]} 54... f5+ {[%clk 0:00:06.8]} 55. Kf4 {[%clk 0:00:06]}
55... Rc4+ {[%clk 0:00:06.5]} 56. Ke5 {[%clk 0:00:06.6]} 56... Rc3 {[%clk
0:00:07]} 57. f4 {[%clk 0:00:06.3]} 57... Re3+ {[%clk 0:00:06.9]} 58. Kd5 {[%clk
0:00:06.8]} 58... Re4 {[%clk 0:00:06.9]} 59. c6 {[%clk 0:00:07.4]} 59... Rxf4
{[%clk 0:00:06.6]} 60. Re7 {[%clk 0:00:07.9]} 60... Rf1 {[%clk 0:00:06]} 61. c7
{[%clk 0:00:08.3]} 61... Rd1+ {[%clk 0:00:04.7]} 62. Ke6 {[%clk 0:00:02.3]}
62... Re1+ {[%clk 0:00:03.9]} 63. Kd7 {[%clk 0:00:02.6]} 63... Rd1+ {[%clk
0:00:04.1]} 64. Ke8 {[%clk 0:00:03]} 64... Rc1 {[%clk 0:00:04.2]} 65. Kd7 {[%clk
0:00:03.3]} 65... f4 {[%clk 0:00:04]} 66. Re6+ {[%clk 0:00:03.3]} 66... Kf5
{[%clk 0:00:02.8]} 67. Rc6 {[%clk 0:00:04.2]} 67... Rd1+ {[%clk 0:00:03]} 68.
Ke7 {[%clk 0:00:04]} 68... Re1+ {[%clk 0:00:03.1]} 69. Kf7 {[%clk 0:00:04.5]}
69... Rh1 {[%clk 0:00:03.7]} 70. c8=Q+ {[%clk 0:00:04.9]} 70... Ke4 {[%clk
0:00:03.1]} 71. Qe6+ {[%clk 0:00:04.4]} 71... Kf3 {[%clk 0:00:03.5]} 72. Rc3+
{[%clk 0:00:04.7]} 72... Kg2 {[%clk 0:00:02.9]} 73. Qe4+ {[%clk 0:00:04.6]}
73... Kg1 {[%clk 0:00:03.4]} 74. Rc1+ {[%clk 0:00:04.2]} 74... Kf2 {[%clk
0:00:04.3]} 75. Qxf4+ {[%clk 0:00:03.7]} 75... Ke2 {[%clk 0:00:04.4]} 76. Rxh1
{[%clk 0:00:02.2]} 76... Kd3 {[%clk 0:00:05.3]} 77. Rh3+ {[%clk 0:00:02.6]}
77... Ke2 {[%clk 0:00:05.5]} 78. Qh2+ {[%clk 0:00:02.9]} 78... Kf1 {[%clk
0:00:06.4]} 79. Rg3 {[%clk 0:00:03.1]} 79... Ke1 {[%clk 0:00:07.3]} 80. Rg1#
{[%clk 0:00:04]} 1-0

[Event "*** SCC Grand Prix: Titled Tuesday Blitz"]
[Site "Chess.com"]
[Date "2020.06.23"]
[Round "5"]
[White "SantoBlue"]
[Black "Sanan_Sjugirov"]
[Result "0-1"]
[WhiteElo "2795"]
[BlackElo "2873"]
[TimeControl "180+1"]
[EndTime "10:58:42 PDT"]
[Termination "Sanan_Sjugirov won by resignation"]

1. Nf3 {[%clk 0:02:58.3]} 1... d5 {[%clk 0:02:57.7]} 2. g3 {[%clk 0:02:57]} 2...
Bg4 {[%clk 0:02:56.5]} 3. Bg2 {[%clk 0:02:56.4]} 3... c6 {[%clk 0:02:53.9]} 4.
O-O {[%clk 0:02:56.4]} 4... e6 {[%clk 0:02:53.3]} 5. d3 {[%clk 0:02:54.2]} 5...
Nd7 {[%clk 0:02:42.7]} 6. Nbd2 {[%clk 0:02:51.7]} 6... Bd6 {[%clk 0:02:40.9]} 7.
c4 {[%clk 0:02:39.1]} 7... Ne7 {[%clk 0:02:23.3]} 8. b3 {[%clk 0:02:38.6]} 8...
O-O {[%clk 0:02:22.6]} 9. Bb2 {[%clk 0:02:38.4]} 9... a5 {[%clk 0:02:20.8]} 10.
a3 {[%clk 0:02:37.9]} 10... Re8 {[%clk 0:02:16]} 11. Qc2 {[%clk 0:02:31.5]}
11... Bh5 {[%clk 0:01:58]} 12. Rae1 {[%clk 0:02:23.2]} 12... f6 {[%clk
0:01:55.4]} 13. e4 {[%clk 0:02:18.5]} 13... Bg6 {[%clk 0:01:23.2]} 14. Nh4
{[%clk 0:02:11.5]} 14... Bf7 {[%clk 0:01:23.4]} 15. f4 {[%clk 0:02:09.9]} 15...
Bc7 {[%clk 0:01:10.6]} 16. Kh1 {[%clk 0:02:07.6]} 16... Nf8 {[%clk 0:00:55.7]}
17. Ndf3 {[%clk 0:01:58.5]} 17... Nfg6 {[%clk 0:00:39]} 18. Nxg6 {[%clk
0:01:52.4]} 18... Nxg6 {[%clk 0:00:39]} 19. h4 {[%clk 0:01:51.8]} 19... dxe4
{[%clk 0:00:32.8]} 20. dxe4 {[%clk 0:01:50.8]} 20... e5 {[%clk 0:00:29.3]} 21.
h5 {[%clk 0:01:46.5]} 21... Nf8 {[%clk 0:00:27.2]} 22. h6 {[%clk 0:01:46.1]}
22... gxh6 {[%clk 0:00:25.5]} 23. Nh4 {[%clk 0:01:33]} 23... Be6 {[%clk
0:00:20.1]} 24. Qc1 {[%clk 0:01:28.9]} 24... Qe7 {[%clk 0:00:18.6]} 25. fxe5
{[%clk 0:01:24.1]} 25... Bxe5 {[%clk 0:00:18.2]} 26. Bxe5 {[%clk 0:01:20.2]}
26... fxe5 {[%clk 0:00:19.1]} 27. Qxh6 {[%clk 0:01:20.6]} 27... Qg7 {[%clk
0:00:18.9]} 28. Qe3 {[%clk 0:01:14.2]} 28... Rad8 {[%clk 0:00:17.2]} 29. Nf5
{[%clk 0:01:04.2]} 29... Bxf5 {[%clk 0:00:17.2]} 30. Rxf5 {[%clk 0:01:05.1]}
30... Ne6 {[%clk 0:00:16.8]} 31. Bh3 {[%clk 0:01:00.5]} 31... Kh8 {[%clk
0:00:14.7]} 32. Ref1 {[%clk 0:00:59.7]} 32... Rf8 {[%clk 0:00:06.1]} 33. R1f2
{[%clk 0:00:47]} 33... Nd4 {[%clk 0:00:04.1]} 34. Rxf8+ {[%clk 0:00:43.2]} 34...
Rxf8 {[%clk 0:00:05]} 35. Rxf8+ {[%clk 0:00:39.6]} 35... Qxf8 {[%clk 0:00:05.9]}
36. Qg5 {[%clk 0:00:38.9]} 36... Nf3 {[%clk 0:00:04.4]} 37. Qh5 {[%clk
0:00:33.8]} 37... h6 {[%clk 0:00:02.7]} 38. Bf5 {[%clk 0:00:27.5]} 38... Nd4
{[%clk 0:00:02.2]} 39. Qg6 {[%clk 0:00:16.1]} 39... Nxf5 {[%clk 0:00:02.7]} 40.
exf5 {[%clk 0:00:17]} 40... e4 {[%clk 0:00:03.2]} 41. Kg2 {[%clk 0:00:16]} 41...
e3 {[%clk 0:00:03.7]} 42. Kf3 {[%clk 0:00:15.7]} 42... e2 {[%clk 0:00:03.8]} 43.
Kxe2 {[%clk 0:00:15.2]} 43... Qxa3 {[%clk 0:00:04]} 44. Qxh6+ {[%clk 0:00:11.5]}
44... Kg8 {[%clk 0:00:04.4]} 45. Qe6+ {[%clk 0:00:12]} 45... Kh8 {[%clk
0:00:04.4]} 46. Qc8+ {[%clk 0:00:12.2]} 46... Kg7 {[%clk 0:00:04]} 47. Qxb7+
{[%clk 0:00:12.7]} 47... Kf6 {[%clk 0:00:04.2]} 48. Qxc6+ {[%clk 0:00:12]} 48...
Kxf5 {[%clk 0:00:04.7]} 49. Qd5+ {[%clk 0:00:12.6]} 49... Kg4 {[%clk 0:00:04.4]}
50. Qf3+ {[%clk 0:00:12.8]} 50... Kg5 {[%clk 0:00:04.8]} 51. Qe3+ {[%clk
0:00:13]} 51... Kg4 {[%clk 0:00:05]} 52. Qf3+ {[%clk 0:00:09]} 52... Kg5 {[%clk
0:00:05.1]} 53. g4 {[%clk 0:00:07.4]} 53... Qb2+ {[%clk 0:00:04.9]} 54. Kf1
{[%clk 0:00:07.6]} 54... Qc1+ {[%clk 0:00:05]} 55. Kg2 {[%clk 0:00:07.8]} 55...
Qd2+ {[%clk 0:00:05.4]} 56. Kh3 {[%clk 0:00:07.2]} 56... Qa2 {[%clk 0:00:04.2]}
57. Qf5+ {[%clk 0:00:07.1]} 57... Kh6 {[%clk 0:00:05.1]} 58. g5+ {[%clk
0:00:07.1]} 58... Kg7 {[%clk 0:00:03.8]} 59. Qf6+ {[%clk 0:00:07.5]} 59... Kg8
{[%clk 0:00:04.4]} 60. Qe6+ {[%clk 0:00:07.4]} 60... Kg7 {[%clk 0:00:04.6]} 61.
c5 {[%clk 0:00:07.4]} 61... a4 {[%clk 0:00:03.6]} 62. c6 {[%clk 0:00:04.5]}
62... Qxb3+ {[%clk 0:00:03]} 63. Qxb3 {[%clk 0:00:03.8]} 63... axb3 {[%clk
0:00:03.9]} 64. c7 {[%clk 0:00:04.7]} 64... b2 {[%clk 0:00:04.4]} 65. c8=Q
{[%clk 0:00:05.6]} 65... b1=Q {[%clk 0:00:05]} 66. Qd7+ {[%clk 0:00:04.4]} 66...
Kg6 {[%clk 0:00:05.2]} 67. Qd5 {[%clk 0:00:01.7]} 67... Qf1+ {[%clk 0:00:04.1]}
68. Kg3 {[%clk 0:00:01.3]} 68... Qg1+ {[%clk 0:00:04.3]} 69. Kf4 {[%clk
0:00:01.9]} 69... Qf2+ {[%clk 0:00:04.4]} 70. Kg4 {[%clk 0:00:01.4]} 70... Qe2+
{[%clk 0:00:04.3]} 71. Kg3 {[%clk 0:00:01.1]} 71... Qe1+ {[%clk 0:00:04.5]} 72.
Kf3 {[%clk 0:00:01.6]} 72... Qh1+ {[%clk 0:00:04.4]} 0-1

[Event "*** SCC Grand Prix: Titled Tuesday Blitz"]
[Site "Chess.com"]
[Date "2020.06.23"]
[Round "5"]
[White "SaqoChess_Twitch"]
[Black "Baby_Legs"]
[Result "0-1"]
[WhiteElo "2406"]
[BlackElo "2621"]
[TimeControl "180+1"]
[EndTime "10:58:43 PDT"]
[Termination "Baby_Legs won by resignation"]

1. d4 {[%clk 0:03:00.9]} 1... g6 {[%clk 0:03:00.9]} 2. c4 {[%clk 0:03:01.2]}
2... Bg7 {[%clk 0:03:01.2]} 3. Nc3 {[%clk 0:03:02.1]} 3... c5 {[%clk 0:03:01.5]}
4. d5 {[%clk 0:03:01.8]} 4... Bxc3+ {[%clk 0:03:01.7]} 5. bxc3 {[%clk
0:03:02.7]} 5... f5 {[%clk 0:03:02.1]} 6. Nf3 {[%clk 0:03:03.3]} 6... Nf6 {[%clk
0:03:01.7]} 7. g3 {[%clk 0:03:03.8]} 7... d6 {[%clk 0:03:01.8]} 8. Bg2 {[%clk
0:03:04.3]} 8... Qa5 {[%clk 0:03:02.1]} 9. Bd2 {[%clk 0:03:03.3]} 9... Nbd7
{[%clk 0:03:01]} 10. O-O {[%clk 0:03:03.2]} 10... Nb6 {[%clk 0:03:01]} 11. Qb3
{[%clk 0:03:02.9]} 11... Bd7 {[%clk 0:03:00.6]} 12. a4 {[%clk 0:03:00.3]} 12...
Ne4 {[%clk 0:02:58.9]} 13. Ra3 {[%clk 0:02:53.7]} 13... Qa6 {[%clk 0:02:50.3]}
14. a5 {[%clk 0:02:50.6]} 14... Nxc4 {[%clk 0:02:48.1]} 15. Ra2 {[%clk
0:02:48.1]} 15... O-O {[%clk 0:01:59.3]} 16. Bh6 {[%clk 0:02:44.5]} 16... Rfc8
{[%clk 0:01:52.1]} 17. Rfa1 {[%clk 0:02:42.6]} 17... Be8 {[%clk 0:01:45.6]} 18.
Ng5 {[%clk 0:02:37.1]} 18... Nxg5 {[%clk 0:01:41.1]} 19. Bxg5 {[%clk 0:02:38]}
19... Qb5 {[%clk 0:01:41.4]} 20. Qxb5 {[%clk 0:02:33.9]} 20... Bxb5 {[%clk
0:01:42.3]} 21. Bxe7 {[%clk 0:02:33.9]} 21... Re8 {[%clk 0:01:38.5]} 22. Bg5
{[%clk 0:02:30.9]} 22... Kf7 {[%clk 0:01:28.6]} 23. e3 {[%clk 0:02:20.1]} 23...
Ne5 {[%clk 0:01:24.4]} 24. Bf4 {[%clk 0:02:16]} 24... Bd3 {[%clk 0:01:10]} 25.
Rb2 {[%clk 0:02:12.1]} 25... Rab8 {[%clk 0:01:10.5]} 26. Bf1 {[%clk 0:02:01.1]}
26... Bxf1 {[%clk 0:01:08.1]} 27. Kxf1 {[%clk 0:02:02]} 27... Nc4 {[%clk
0:01:06.3]} 28. Rba2 {[%clk 0:01:59.5]} 28... Kf6 {[%clk 0:01:00]} 29. Ra4
{[%clk 0:01:59.2]} 29... Ne5 {[%clk 0:00:55.9]} 30. Ke2 {[%clk 0:01:57.4]} 30...
Nf7 {[%clk 0:00:55.4]} 31. h4 {[%clk 0:01:56.1]} 31... h6 {[%clk 0:00:55]} 32.
e4 {[%clk 0:01:38.5]} 32... fxe4 {[%clk 0:00:51.1]} 33. g4 {[%clk 0:01:30.6]}
33... Re7 {[%clk 0:00:48.5]} 34. Ke3 {[%clk 0:01:28.9]} 34... g5 {[%clk
0:00:46.2]} 35. hxg5+ {[%clk 0:01:27.5]} 35... hxg5 {[%clk 0:00:47.1]} 36. Bg3
{[%clk 0:01:27.6]} 36... Nh6 {[%clk 0:00:42]} 37. Bxd6 {[%clk 0:01:21.1]} 37...
Nxg4+ {[%clk 0:00:41.7]} 38. Ke2 {[%clk 0:01:20.8]} 38... Rbe8 {[%clk
0:00:41.7]} 39. Bxe7+ {[%clk 0:01:11.8]} 39... Rxe7 {[%clk 0:00:42.6]} 40. Rc4
{[%clk 0:01:08.9]} 40... Ke5 {[%clk 0:00:36.6]} 41. Rxc5 {[%clk 0:01:06.6]}
41... Kd6 {[%clk 0:00:36.3]} 42. Rb5 {[%clk 0:01:06.3]} 42... Rf7 {[%clk
0:00:35.4]} 43. Rf1 {[%clk 0:01:02]} 43... Ne5 {[%clk 0:00:34]} 44. a6 {[%clk
0:00:58.5]} 44... b6 {[%clk 0:00:32.9]} 45. Rh1 {[%clk 0:00:53.9]} 45... Ng4
{[%clk 0:00:27.9]} 46. Rf1 {[%clk 0:00:50.4]} 46... Rf3 {[%clk 0:00:27.9]} 47.
Ra1 {[%clk 0:00:40.2]} 47... Rxf2+ {[%clk 0:00:21.8]} 48. Ke1 {[%clk 0:00:40.5]}
48... Rf8 {[%clk 0:00:21.3]} 49. c4 {[%clk 0:00:38.9]} 49... Ne5 {[%clk
0:00:20.9]} 50. c5+ {[%clk 0:00:35.9]} 50... bxc5 {[%clk 0:00:21.7]} 51. Rb7
{[%clk 0:00:36.4]} 51... Ra8 {[%clk 0:00:20.7]} 52. Ke2 {[%clk 0:00:33.9]} 52...
Kxd5 {[%clk 0:00:20.7]} 53. Rd1+ {[%clk 0:00:32.9]} 53... Kc4 {[%clk 0:00:20.6]}
54. Rc1+ {[%clk 0:00:31.4]} 54... Kd4 {[%clk 0:00:20.3]} 55. Rc7 {[%clk
0:00:25.1]} 55... c4 {[%clk 0:00:19.3]} 56. Rb1 {[%clk 0:00:19.2]} 56... g4
{[%clk 0:00:18.5]} 57. Rbb7 {[%clk 0:00:18.7]} 57... g3 {[%clk 0:00:15.5]} 58.
Rxa7 {[%clk 0:00:17.6]} 58... g2 {[%clk 0:00:16]} 59. Rxa8 {[%clk 0:00:14.4]}
59... g1=Q {[%clk 0:00:15.5]} 60. Rd8+ {[%clk 0:00:15]} 60... Kc3 {[%clk
0:00:15.4]} 61. Rf8 {[%clk 0:00:14.2]} 61... Qg2+ {[%clk 0:00:15.3]} 62. Rf2
{[%clk 0:00:13.9]} 62... Qg4+ {[%clk 0:00:15]} 63. Ke3 {[%clk 0:00:12.3]} 63...
Qg3+ {[%clk 0:00:15.4]} 64. Ke2 {[%clk 0:00:12.5]} 64... Qd3+ {[%clk 0:00:15.5]}
65. Ke1 {[%clk 0:00:12.4]} 65... Nf3+ {[%clk 0:00:16.4]} 66. Rxf3 {[%clk
0:00:11.6]} 66... exf3 {[%clk 0:00:17.3]} 67. Re7 {[%clk 0:00:10.1]} 67... Qd2+
{[%clk 0:00:15.7]} 68. Kf1 {[%clk 0:00:09.8]} 68... Qa2 {[%clk 0:00:16.6]} 69.
a7 {[%clk 0:00:09.3]} 69... Kd2 {[%clk 0:00:15.7]} 70. Rd7+ {[%clk 0:00:07.2]}
70... Kc2 {[%clk 0:00:15.7]} 71. Re7 {[%clk 0:00:07.8]} 71... c3 {[%clk
0:00:15.7]} 72. Kf2 {[%clk 0:00:07.2]} 72... Kb1+ {[%clk 0:00:15.9]} 73. Kxf3
{[%clk 0:00:07.1]} 73... c2 {[%clk 0:00:16.5]} 74. Rb7+ {[%clk 0:00:07]} 74...
Ka1 {[%clk 0:00:16.3]} 75. Rc7 {[%clk 0:00:06.9]} 75... Kb1 {[%clk 0:00:16]} 76.
Rb7+ {[%clk 0:00:07.4]} 76... Kc1 {[%clk 0:00:16.2]} 77. Rd7 {[%clk 0:00:06.7]}
77... Qa6 {[%clk 0:00:16.5]} 78. Ke3 {[%clk 0:00:06.1]} 78... Kb1 {[%clk
0:00:16.2]} 79. a8=Q {[%clk 0:00:02.8]} 79... c1=Q+ {[%clk 0:00:15.8]} 80. Rd2
{[%clk 0:00:01.8]} 80... Qxa8 {[%clk 0:00:16.7]} 0-1